[Event "*** Titled Tuesday Blitz"]
[Site "Chess.com"]
[Date "2020.04.28"]
[Round "5"]
[White "FranciscodelaF"]
[Black "EvilMorty23"]
[Result "1-0"]
[WhiteElo "2390"]
[BlackElo "2524"]
[TimeControl "180+1"]
[EndTime "10:52:23 PDT"]
[Termination "FranciscodelaF won by checkmate"]

1. d4 {[%clk 0:03:00.9]} 1... Nf6 {[%clk 0:03:00]} 2. c4 {[%clk 0:03:00.8]} 2...
e6 {[%clk 0:03:00.4]} 3. g3 {[%clk 0:02:59.5]} 3... d5 {[%clk 0:02:57.5]} 4. Nf3
{[%clk 0:02:59.6]} 4... Bb4+ {[%clk 0:02:57.6]} 5. Bd2 {[%clk 0:02:59.4]} 5...
Be7 {[%clk 0:02:57.8]} 6. Bg2 {[%clk 0:02:59.5]} 6... O-O {[%clk 0:02:58]} 7.
O-O {[%clk 0:03:00.1]} 7... c6 {[%clk 0:02:57.7]} 8. Qc2 {[%clk 0:03:00.1]} 8...
b6 {[%clk 0:02:58.1]} 9. Bf4 {[%clk 0:02:50.8]} 9... Ba6 {[%clk 0:02:55.9]} 10.
Nbd2 {[%clk 0:02:50.8]} 10... Nbd7 {[%clk 0:02:52.6]} 11. b3 {[%clk 0:02:46.1]}
11... Rc8 {[%clk 0:02:49.1]} 12. Ne5 {[%clk 0:02:38.1]} 12... Bb7 {[%clk
0:02:29.6]} 13. e4 {[%clk 0:02:34.1]} 13... Nh5 {[%clk 0:02:24.1]} 14. Be3
{[%clk 0:02:24.9]} 14... Nxe5 {[%clk 0:02:23.8]} 15. dxe5 {[%clk 0:02:21.6]}
15... d4 {[%clk 0:02:24.3]} 16. Bf4 {[%clk 0:02:22]} 16... g5 {[%clk 0:02:24.4]}
17. Qd1 {[%clk 0:02:08.2]} 17... Ng7 {[%clk 0:02:19.4]} 18. Qg4 {[%clk 0:02:04]}
18... h5 {[%clk 0:02:11]} 19. Qe2 {[%clk 0:02:03.2]} 19... gxf4 {[%clk
0:02:09.1]} 20. gxf4 {[%clk 0:02:04.1]} 20... c5 {[%clk 0:02:05.3]} 21. Kh1
{[%clk 0:02:04.3]} 21... f5 {[%clk 0:01:59.3]} 22. Rg1 {[%clk 0:02:01.3]} 22...
Kf7 {[%clk 0:01:53.9]} 23. exf5 {[%clk 0:01:56.6]} 23... Bxg2+ {[%clk
0:01:54.8]} 24. Rxg2 {[%clk 0:01:56.4]} 24... exf5 {[%clk 0:01:55.3]} 25. e6+
{[%clk 0:01:53.1]} 25... Kg8 {[%clk 0:01:44.7]} 26. Qxh5 {[%clk 0:01:51.3]}
26... Rf6 {[%clk 0:01:44.2]} 27. Rxg7+ {[%clk 0:01:48.5]} 27... Kxg7 {[%clk
0:01:34.8]} 28. Rg1+ {[%clk 0:01:47.4]} 28... Kf8 {[%clk 0:01:30.7]} 29. Qh8#
{[%clk 0:01:43.4]} 1-0

[Event "*** Titled Tuesday Blitz"]
[Site "Chess.com"]
[Date "2020.04.28"]
[Round "5"]
[White "mjray79"]
[Black "djano"]
[Result "0-1"]
[WhiteElo "2252"]
[BlackElo "2450"]
[TimeControl "180+1"]
[EndTime "10:52:28 PDT"]
[Termination "djano won by checkmate"]

1. d4 {[%clk 0:03:00.9]} 1... d5 {[%clk 0:02:59.1]} 2. c4 {[%clk 0:03:01.1]}
2... c6 {[%clk 0:02:59.5]} 3. Nf3 {[%clk 0:03:01.1]} 3... Nf6 {[%clk 0:02:59.4]}
4. Nc3 {[%clk 0:03:01.4]} 4... a6 {[%clk 0:02:59.4]} 5. c5 {[%clk 0:02:58.5]}
5... b6 {[%clk 0:02:57.9]} 6. cxb6 {[%clk 0:02:54.7]} 6... Nbd7 {[%clk
0:02:58.1]} 7. b7 {[%clk 0:02:50.4]} 7... Bxb7 {[%clk 0:02:57.9]} 8. h3 {[%clk
0:02:49.9]} 8... e6 {[%clk 0:02:53.8]} 9. Bf4 {[%clk 0:02:50.2]} 9... c5 {[%clk
0:02:53.2]} 10. e3 {[%clk 0:02:49.9]} 10... c4 {[%clk 0:02:52.7]} 11. Be2 {[%clk
0:02:46]} 11... Bb4 {[%clk 0:02:51.5]} 12. O-O {[%clk 0:02:45.1]} 12... O-O
{[%clk 0:02:51.3]} 13. Na4 {[%clk 0:02:42.9]} 13... Ne4 {[%clk 0:02:49]} 14. a3
{[%clk 0:02:31.7]} 14... Bd6 {[%clk 0:02:47.3]} 15. Bxd6 {[%clk 0:02:28.2]}
15... Nxd6 {[%clk 0:02:48.2]} 16. b3 {[%clk 0:02:25.7]} 16... Rc8 {[%clk
0:02:46.3]} 17. bxc4 {[%clk 0:02:22]} 17... dxc4 {[%clk 0:02:46.7]} 18. Rc1
{[%clk 0:02:12]} 18... Qa5 {[%clk 0:02:43.1]} 19. Ne5 {[%clk 0:02:09.6]} 19...
Nxe5 {[%clk 0:02:38]} 20. dxe5 {[%clk 0:02:10.5]} 20... Qxe5 {[%clk 0:02:38.2]}
21. Nb6 {[%clk 0:02:08]} 21... Rcd8 {[%clk 0:02:36.1]} 22. Qa4 {[%clk 0:02:04]}
22... c3 {[%clk 0:02:23.6]} 23. Nd7 {[%clk 0:01:58.6]} 23... Qg5 {[%clk
0:02:11.2]} 24. f3 {[%clk 0:01:50.9]} 24... Qxe3+ {[%clk 0:02:11.1]} 25. Kh1
{[%clk 0:01:48.5]} 25... Qxe2 {[%clk 0:01:59.5]} 26. Nxf8 {[%clk 0:01:46.4]}
26... Rxf8 {[%clk 0:01:59.4]} 27. Rfd1 {[%clk 0:01:44]} 27... Nf5 {[%clk
0:01:55.1]} 28. Kh2 {[%clk 0:01:42.5]} 28... Bxf3 {[%clk 0:01:52.4]} 29. Rg1
{[%clk 0:01:38.9]} 29... Qe5+ {[%clk 0:01:44.4]} 30. g3 {[%clk 0:01:38.7]} 30...
Qe2+ {[%clk 0:01:44.1]} 31. Rg2 {[%clk 0:01:36.4]} 31... Qxg2# {[%clk
0:01:43.9]} 0-1

[Event "*** Titled Tuesday Blitz"]
[Site "Chess.com"]
[Date "2020.04.28"]
[Round "5"]
[White "Keks2017"]
[Black "floplover"]
[Result "1-0"]
[WhiteElo "2414"]
[BlackElo "2236"]
[TimeControl "180+1"]
[EndTime "10:52:37 PDT"]
[Termination "Keks2017 won by resignation"]

1. e4 {[%clk 0:02:59.5]} 1... c6 {[%clk 0:01:05.8]} 2. d3 {[%clk 0:02:57.7]}
2... d5 {[%clk 0:01:05.4]} 3. Nd2 {[%clk 0:02:57.7]} 3... e5 {[%clk 0:01:03.1]}
4. Ngf3 {[%clk 0:02:57.4]} 4... Bd6 {[%clk 0:01:02.8]} 5. g3 {[%clk 0:02:57.4]}
5... Nf6 {[%clk 0:01:02.8]} 6. Bg2 {[%clk 0:02:57.4]} 6... O-O {[%clk 0:01:03]}
7. O-O {[%clk 0:02:56.9]} 7... Re8 {[%clk 0:01:03.2]} 8. b3 {[%clk 0:02:56.6]}
8... Bg4 {[%clk 0:01:01.2]} 9. h3 {[%clk 0:02:55.9]} 9... Bh5 {[%clk 0:01:00.7]}
10. Bb2 {[%clk 0:02:55.6]} 10... Nbd7 {[%clk 0:01:00.4]} 11. a3 {[%clk
0:02:54.9]} 11... a5 {[%clk 0:00:59.1]} 12. c3 {[%clk 0:02:54.7]} 12... a4
{[%clk 0:00:55.3]} 13. b4 {[%clk 0:02:53.9]} 13... Bg6 {[%clk 0:00:51.9]} 14.
Nh4 {[%clk 0:02:50.8]} 14... Qc7 {[%clk 0:00:49.5]} 15. Qc2 {[%clk 0:02:48.9]}
15... Nb6 {[%clk 0:00:43.5]} 16. c4 {[%clk 0:02:45]} 16... dxc4 {[%clk
0:00:41.3]} 17. dxc4 {[%clk 0:02:44.6]} 17... Bf8 {[%clk 0:00:38.9]} 18. Nf5
{[%clk 0:02:40.8]} 18... Rad8 {[%clk 0:00:36.6]} 19. c5 {[%clk 0:02:40.3]} 19...
Nc8 {[%clk 0:00:31.9]} 20. Nc4 {[%clk 0:02:38.8]} 20... b5 {[%clk 0:00:30.8]}
21. Nce3 {[%clk 0:02:24.9]} 21... Nb6 {[%clk 0:00:31.7]} 22. cxb6 {[%clk
0:02:23.7]} 1-0

[Event "*** Titled Tuesday Blitz"]
[Site "Chess.com"]
[Date "2020.04.28"]
[Round "5"]
[White "TheFireChess"]
[Black "vovachesss"]
[Result "1-0"]
[WhiteElo "2426"]
[BlackElo "2559"]
[TimeControl "180+1"]
[EndTime "10:52:45 PDT"]
[Termination "TheFireChess won by resignation"]

1. g3 {[%clk 0:02:42.5]} 1... d5 {[%clk 0:02:53.7]} 2. Bg2 {[%clk 0:02:43.4]}
2... h5 {[%clk 0:02:53.2]} 3. h3 {[%clk 0:02:42.4]} 3... e5 {[%clk 0:02:52.7]}
4. d3 {[%clk 0:02:42.3]} 4... Nc6 {[%clk 0:02:52.8]} 5. Nc3 {[%clk 0:02:42.1]}
5... Be6 {[%clk 0:02:52.7]} 6. e4 {[%clk 0:02:42.5]} 6... d4 {[%clk 0:02:52.5]}
7. Nb1 {[%clk 0:02:42.1]} 7... Qd7 {[%clk 0:02:51.9]} 8. Ne2 {[%clk 0:02:42]}
8... O-O-O {[%clk 0:02:51.7]} 9. f4 {[%clk 0:02:42.5]} 9... g6 {[%clk
0:02:44.8]} 10. Nd2 {[%clk 0:02:40.9]} 10... h4 {[%clk 0:02:39.7]} 11. g4 {[%clk
0:02:40.7]} 11... exf4 {[%clk 0:02:39.9]} 12. Nxf4 {[%clk 0:02:41.6]} 12... Bd6
{[%clk 0:02:40]} 13. Nf3 {[%clk 0:02:40.3]} 13... Nge7 {[%clk 0:02:37.1]} 14.
O-O {[%clk 0:02:32.4]} 14... Ne5 {[%clk 0:02:30.4]} 15. Nxe6 {[%clk 0:02:30.8]}
15... Nxf3+ {[%clk 0:02:28.3]} 16. Qxf3 {[%clk 0:02:31.7]} 16... fxe6 {[%clk
0:02:18.4]} 17. e5 {[%clk 0:02:28.4]} 17... Nd5 {[%clk 0:01:59.7]} 18. exd6
{[%clk 0:02:26.9]} 18... Qxd6 {[%clk 0:02:00.6]} 19. Bf4 {[%clk 0:02:10.9]}
19... Qb6 {[%clk 0:01:49.9]} 20. Qe4 {[%clk 0:02:02.8]} 20... Kb8 {[%clk
0:01:44.8]} 21. Be5 {[%clk 0:01:53.1]} 21... Rhf8 {[%clk 0:01:43.1]} 22. Bxd4
{[%clk 0:01:48.2]} 22... Qa6 {[%clk 0:01:26.8]} 23. c4 {[%clk 0:01:34.1]} 23...
Nb4 {[%clk 0:01:26.2]} 24. Rxf8 {[%clk 0:01:32.3]} 24... Rxf8 {[%clk 0:01:26.3]}
25. Bc5 {[%clk 0:01:30.5]} 25... Rd8 {[%clk 0:01:20.9]} 26. Bxb4 {[%clk
0:01:28.7]} 26... Qb6+ {[%clk 0:01:21.6]} 27. c5 {[%clk 0:01:28.3]} 27... Qxb4
{[%clk 0:01:22.5]} 28. Qxb4 {[%clk 0:01:27.7]} 1-0

[Event "*** Titled Tuesday Blitz"]
[Site "Chess.com"]
[Date "2020.04.28"]
[Round "5"]
[White "MartinCerveny"]
[Black "kingnb"]
[Result "0-1"]
[WhiteElo "2598"]
[BlackElo "2473"]
[TimeControl "180+1"]
[EndTime "10:52:51 PDT"]
[Termination "kingnb won by resignation"]

1. d4 {[%clk 0:03:00.9]} 1... d6 {[%clk 0:02:57.3]} 2. c4 {[%clk 0:03:00.8]}
2... e5 {[%clk 0:02:54.8]} 3. Nf3 {[%clk 0:03:00.9]} 3... e4 {[%clk 0:02:54.3]}
4. Ng5 {[%clk 0:03:00.3]} 4... f5 {[%clk 0:02:55.2]} 5. g3 {[%clk 0:02:58.2]}
5... Nf6 {[%clk 0:02:54.6]} 6. Bg2 {[%clk 0:02:57.5]} 6... g6 {[%clk 0:02:49.6]}
7. O-O {[%clk 0:02:56.6]} 7... Bg7 {[%clk 0:02:49.2]} 8. f3 {[%clk 0:02:56.7]}
8... h6 {[%clk 0:02:47.2]} 9. Nh3 {[%clk 0:02:56.1]} 9... exf3 {[%clk
0:02:47.3]} 10. exf3 {[%clk 0:02:55.7]} 10... O-O {[%clk 0:02:48.1]} 11. Nc3
{[%clk 0:02:54.9]} 11... Nc6 {[%clk 0:02:46]} 12. Be3 {[%clk 0:02:51.4]} 12...
Qe8 {[%clk 0:02:44]} 13. Qd2 {[%clk 0:02:45.9]} 13... g5 {[%clk 0:02:40]} 14.
Rae1 {[%clk 0:02:43.9]} 14... Qg6 {[%clk 0:02:34.7]} 15. Qc2 {[%clk 0:02:20.2]}
15... a6 {[%clk 0:02:27.4]} 16. Nf2 {[%clk 0:02:15.8]} 16... Qf7 {[%clk
0:02:26.1]} 17. f4 {[%clk 0:02:12.9]} 17... Qxc4 {[%clk 0:02:18.9]} 18. fxg5
{[%clk 0:02:04.5]} 18... hxg5 {[%clk 0:02:19.8]} 19. Bxg5 {[%clk 0:02:02.1]}
19... Nxd4 {[%clk 0:01:59.9]} 20. Qd2 {[%clk 0:02:01.9]} 20... Be6 {[%clk
0:01:53]} 21. Bxf6 {[%clk 0:01:58.5]} 21... Rxf6 {[%clk 0:01:50.3]} 22. Rxe6
{[%clk 0:01:41.4]} 22... Rxe6 {[%clk 0:01:39]} 23. Bd5 {[%clk 0:01:39.8]} 23...
Qxd5 {[%clk 0:01:39.1]} 24. Nxd5 {[%clk 0:01:35.5]} 24... Nf3+ {[%clk
0:01:39.2]} 25. Kg2 {[%clk 0:01:35.1]} 25... Nxd2 {[%clk 0:01:39.6]} 26. Rd1
{[%clk 0:01:35.2]} 26... Re2 {[%clk 0:01:29.9]} 27. Nf4 {[%clk 0:01:33.1]} 27...
Rae8 {[%clk 0:01:28.6]} 0-1

[Event "*** Titled Tuesday Blitz"]
[Site "Chess.com"]
[Date "2020.04.28"]
[Round "5"]
[White "MartinMatthiesen"]
[Black "manmanlai1"]
[Result "1-0"]
[WhiteElo "2471"]
[BlackElo "2295"]
[TimeControl "180+1"]
[EndTime "10:52:53 PDT"]
[Termination "MartinMatthiesen won by resignation"]

1. d4 {[%clk 0:03:00.9]} 1... d5 {[%clk 0:02:04.9]} 2. c4 {[%clk 0:02:59.1]}
2... e6 {[%clk 0:02:05.2]} 3. Nc3 {[%clk 0:02:58.6]} 3... Bb4 {[%clk 0:02:02.4]}
4. e3 {[%clk 0:02:57.6]} 4... Nf6 {[%clk 0:02:01.8]} 5. Nf3 {[%clk 0:02:57.2]}
5... O-O {[%clk 0:02:01.4]} 6. Bd2 {[%clk 0:02:54]} 6... b6 {[%clk 0:02:00.5]}
7. cxd5 {[%clk 0:02:49.4]} 7... exd5 {[%clk 0:01:59.1]} 8. Rc1 {[%clk
0:02:48.7]} 8... a6 {[%clk 0:01:54.9]} 9. Bd3 {[%clk 0:02:47.9]} 9... Bb7 {[%clk
0:01:54.2]} 10. O-O {[%clk 0:02:47.3]} 10... Re8 {[%clk 0:01:52.7]} 11. Ne5
{[%clk 0:02:17.6]} 11... Bd6 {[%clk 0:01:52.3]} 12. f4 {[%clk 0:02:16.8]} 12...
c5 {[%clk 0:01:52.3]} 13. Be1 {[%clk 0:02:15.8]} 13... Nc6 {[%clk 0:01:36.2]}
14. Bh4 {[%clk 0:02:13.1]} 14... Be7 {[%clk 0:01:35.4]} 15. Bxf6 {[%clk
0:01:57.9]} 15... Bxf6 {[%clk 0:01:35]} 16. Bxh7+ {[%clk 0:01:57.5]} 16... Kf8
{[%clk 0:01:31.9]} 17. Qh5 {[%clk 0:01:55.6]} 1-0

[Event "*** Titled Tuesday Blitz"]
[Site "Chess.com"]
[Date "2020.04.28"]
[Round "5"]
[White "Galiev_Azat"]
[Black "AlexOstrovskiy"]
[Result "0-1"]
[WhiteElo "2281"]
[BlackElo "2550"]
[TimeControl "180+1"]
[EndTime "10:52:56 PDT"]
[Termination "AlexOstrovskiy won on time"]

1. d4 {[%clk 0:03:00.8]} 1... e6 {[%clk 0:02:59.6]} 2. Bf4 {[%clk 0:02:59.3]}
2... b6 {[%clk 0:02:59.6]} 3. e3 {[%clk 0:02:58.4]} 3... Bb7 {[%clk 0:02:59.7]}
4. Nf3 {[%clk 0:02:54.3]} 4... Nf6 {[%clk 0:02:59.9]} 5. Bd3 {[%clk 0:02:54.2]}
5... Nh5 {[%clk 0:02:54.8]} 6. Bg3 {[%clk 0:02:52.8]} 6... Nxg3 {[%clk
0:02:49.4]} 7. hxg3 {[%clk 0:02:52]} 7... g6 {[%clk 0:02:50.3]} 8. c3 {[%clk
0:02:48.5]} 8... Bg7 {[%clk 0:02:48.9]} 9. Nbd2 {[%clk 0:02:40.7]} 9... d6
{[%clk 0:02:49.1]} 10. Qe2 {[%clk 0:02:33.9]} 10... Nd7 {[%clk 0:02:47.1]} 11.
O-O {[%clk 0:02:29.8]} 11... a6 {[%clk 0:02:44.7]} 12. e4 {[%clk 0:02:24.9]}
12... O-O {[%clk 0:02:42.1]} 13. Rfe1 {[%clk 0:02:19.5]} 13... c5 {[%clk
0:02:39.9]} 14. Rad1 {[%clk 0:02:08.7]} 14... b5 {[%clk 0:02:35]} 15. e5 {[%clk
0:01:57.4]} 15... dxe5 {[%clk 0:02:18]} 16. dxe5 {[%clk 0:01:51.5]} 16... c4
{[%clk 0:02:18.1]} 0-1

[Event "*** Titled Tuesday Blitz"]
[Site "Chess.com"]
[Date "2020.04.28"]
[Round "5"]
[White "atwalcb"]
[Black "SiddharthGMJagadeesh"]
[Result "0-1"]
[WhiteElo "2266"]
[BlackElo "2482"]
[TimeControl "180+1"]
[EndTime "10:53:04 PDT"]
[Termination "SiddharthGMJagadeesh won by resignation"]

1. d4 {[%clk 0:03:00.9]} 1... d5 {[%clk 0:02:59]} 2. Nf3 {[%clk 0:03:00.4]} 2...
Nf6 {[%clk 0:02:58.9]} 3. c4 {[%clk 0:02:58.7]} 3... e6 {[%clk 0:02:59]} 4. g3
{[%clk 0:02:57.7]} 4... Bb4+ {[%clk 0:02:58.6]} 5. Bd2 {[%clk 0:02:57.5]} 5...
Be7 {[%clk 0:02:58.5]} 6. Bg2 {[%clk 0:02:57.2]} 6... O-O {[%clk 0:02:59]} 7.
Qc2 {[%clk 0:02:56.2]} 7... c6 {[%clk 0:02:58.7]} 8. O-O {[%clk 0:02:56.1]} 8...
b6 {[%clk 0:02:58.6]} 9. Rd1 {[%clk 0:02:53.5]} 9... Ba6 {[%clk 0:02:58.2]} 10.
b3 {[%clk 0:02:53.2]} 10... Nbd7 {[%clk 0:02:58.2]} 11. Bf4 {[%clk 0:02:40.4]}
11... Ne4 {[%clk 0:02:50.2]} 12. Nfd2 {[%clk 0:02:36.5]} 12... f5 {[%clk
0:02:35.2]} 13. f3 {[%clk 0:02:32.4]} 13... Nxd2 {[%clk 0:02:33.3]} 14. Nxd2
{[%clk 0:02:32.6]} 14... Rc8 {[%clk 0:02:32.3]} 15. e4 {[%clk 0:02:29.9]} 15...
fxe4 {[%clk 0:02:07]} 16. fxe4 {[%clk 0:02:29.6]} 16... Nf6 {[%clk 0:01:39.8]}
17. e5 {[%clk 0:02:22]} 17... Nh5 {[%clk 0:01:38.3]} 18. Be3 {[%clk 0:02:21.7]}
18... Bg5 {[%clk 0:01:35.4]} 19. Nf1 {[%clk 0:02:19.7]} 19... Rxf1+ {[%clk
0:01:30.8]} 20. Rxf1 {[%clk 0:02:16.5]} 20... Bxe3+ {[%clk 0:01:30.6]} 21. Kh1
{[%clk 0:02:16.8]} 21... Bxd4 {[%clk 0:01:29.4]} 22. Rae1 {[%clk 0:02:16.9]}
22... Qg5 {[%clk 0:01:17.2]} 23. Qe2 {[%clk 0:02:00.5]} 23... Nxg3+ {[%clk
0:01:11.1]} 24. hxg3 {[%clk 0:01:56.4]} 24... Qh6+ {[%clk 0:01:11.2]} 25. Bh3
{[%clk 0:01:56.8]} 25... Qxh3+ {[%clk 0:01:11]} 26. Qh2 {[%clk 0:01:57.7]} 26...
Qxh2+ {[%clk 0:01:11.2]} 27. Kxh2 {[%clk 0:01:58.6]} 27... dxc4 {[%clk
0:01:10.8]} 28. bxc4 {[%clk 0:01:55.7]} 28... Bxc4 {[%clk 0:01:11.7]} 29. Rf4
{[%clk 0:01:53.4]} 29... c5 {[%clk 0:01:11.3]} 30. Rc1 {[%clk 0:01:50.5]} 30...
b5 {[%clk 0:01:09.4]} 31. a4 {[%clk 0:01:49.4]} 31... a6 {[%clk 0:01:08.3]} 32.
axb5 {[%clk 0:01:48.5]} 32... axb5 {[%clk 0:01:09.2]} 33. Rc2 {[%clk 0:01:47.5]}
33... Bxe5 {[%clk 0:01:07.7]} 34. Re4 {[%clk 0:01:47.8]} 34... Bd3 {[%clk
0:01:06.5]} 0-1

[Event "*** Titled Tuesday Blitz"]
[Site "Chess.com"]
[Date "2020.04.28"]
[Round "5"]
[White "Szparu"]
[Black "GMartin_Petrov"]
[Result "1-0"]
[WhiteElo "2515"]
[BlackElo "2664"]
[TimeControl "180+1"]
[EndTime "10:53:09 PDT"]
[Termination "Szparu won by resignation"]

1. e4 {[%clk 0:03:00.9]} 1... c5 {[%clk 0:02:59.5]} 2. Nf3 {[%clk 0:03:00.6]}
2... d6 {[%clk 0:02:58.8]} 3. d4 {[%clk 0:03:00.7]} 3... cxd4 {[%clk 0:02:59.7]}
4. Nxd4 {[%clk 0:03:01.5]} 4... Nf6 {[%clk 0:03:00.1]} 5. Nc3 {[%clk 0:03:01.7]}
5... a6 {[%clk 0:03:00.6]} 6. Bc4 {[%clk 0:03:01.6]} 6... e6 {[%clk 0:02:57.9]}
7. Bb3 {[%clk 0:03:01.4]} 7... Nbd7 {[%clk 0:02:56.9]} 8. O-O {[%clk 0:03:01.3]}
8... Nc5 {[%clk 0:02:56.5]} 9. f4 {[%clk 0:03:01.1]} 9... Nfxe4 {[%clk
0:02:47.4]} 10. Nxe4 {[%clk 0:03:00.9]} 10... Nxe4 {[%clk 0:02:48.3]} 11. f5
{[%clk 0:03:01.1]} 11... e5 {[%clk 0:02:45.8]} 12. Qh5 {[%clk 0:03:00.8]} 12...
d5 {[%clk 0:02:44.1]} 13. Re1 {[%clk 0:03:00.1]} 13... Bc5 {[%clk 0:02:43.2]}
14. Rxe4 {[%clk 0:02:34.5]} 14... Bxd4+ {[%clk 0:02:30.8]} 15. Rxd4 {[%clk
0:02:33.7]} 15... exd4 {[%clk 0:02:30.3]} 16. Bg5 {[%clk 0:02:33.2]} 16... Qb6
{[%clk 0:01:56.2]} 17. Re1+ {[%clk 0:02:23.5]} 17... Kf8 {[%clk 0:01:54.7]} 18.
Bxd5 {[%clk 0:01:42.6]} 18... Qc7 {[%clk 0:01:18.8]} 19. Bf4 {[%clk 0:01:05]}
19... Qd7 {[%clk 0:01:13.8]} 20. Bd6+ {[%clk 0:01:03.8]} 20... Kg8 {[%clk
0:01:13]} 21. Qxf7+ {[%clk 0:01:03]} 1-0

[Event "*** Titled Tuesday Blitz"]
[Site "Chess.com"]
[Date "2020.04.28"]
[Round "5"]
[White "AlanZhang"]
[Black "Boudicca64"]
[Result "1-0"]
[WhiteElo "2156"]
[BlackElo "1890"]
[TimeControl "180+1"]
[EndTime "10:53:11 PDT"]
[Termination "AlanZhang won by resignation"]

1. e4 {[%clk 0:03:00.3]} 1... c5 {[%clk 0:02:52.6]} 2. Nf3 {[%clk 0:02:59.6]}
2... e6 {[%clk 0:02:51.9]} 3. d4 {[%clk 0:02:59.2]} 3... cxd4 {[%clk 0:02:52.8]}
4. Nxd4 {[%clk 0:02:59.7]} 4... Nf6 {[%clk 0:02:53.7]} 5. Bd3 {[%clk 0:02:59.2]}
5... d5 {[%clk 0:02:53.5]} 6. exd5 {[%clk 0:02:56.8]} 6... Nxd5 {[%clk
0:02:50.7]} 7. O-O {[%clk 0:02:54.8]} 7... Be7 {[%clk 0:02:50.3]} 8. Nb3 {[%clk
0:02:50.5]} 8... O-O {[%clk 0:02:49.2]} 9. Bd2 {[%clk 0:02:49.2]} 9... Nc6
{[%clk 0:02:48.3]} 10. Nc3 {[%clk 0:02:49.1]} 10... a6 {[%clk 0:02:35.4]} 11. a4
{[%clk 0:02:42.2]} 11... b6 {[%clk 0:02:32.6]} 12. Qe2 {[%clk 0:02:28.2]} 12...
Bb7 {[%clk 0:02:29.5]} 13. Nxd5 {[%clk 0:02:11.4]} 13... Qxd5 {[%clk 0:02:28]}
14. Be4 {[%clk 0:02:03]} 14... Qe5 {[%clk 0:02:02.5]} 15. Bc3 {[%clk 0:01:52.4]}
15... Nd4 {[%clk 0:01:50.7]} 16. Bxh7+ {[%clk 0:01:49.2]} 16... Kxh7 {[%clk
0:01:45.2]} 17. Qxe5 {[%clk 0:01:50.1]} 17... Nf3+ {[%clk 0:01:39.9]} 18. gxf3
{[%clk 0:01:49.3]} 18... Bf6 {[%clk 0:01:40]} 19. Qh5+ {[%clk 0:01:48.4]} 19...
Kg8 {[%clk 0:01:40.7]} 20. Bxf6 {[%clk 0:01:48.8]} 20... gxf6 {[%clk 0:01:40.9]}
21. Kh1 {[%clk 0:01:49.4]} 21... Rfc8 {[%clk 0:01:37.3]} 22. Rg1+ {[%clk
0:01:43.8]} 22... Kf8 {[%clk 0:01:38.2]} 23. Nd4 {[%clk 0:01:37]} 23... Ke7
{[%clk 0:01:36.7]} 24. Rg7 {[%clk 0:01:33.4]} 24... Rf8 {[%clk 0:01:32.5]} 25.
Re1 {[%clk 0:01:31.4]} 25... e5 {[%clk 0:01:29]} 26. Nf5+ {[%clk 0:01:26.4]}
26... Ke6 {[%clk 0:01:28]} 27. Rd1 {[%clk 0:01:24.6]} 27... Bd5 {[%clk 0:01:19]}
28. c4 {[%clk 0:01:21.5]} 1-0

[Event "*** Titled Tuesday Blitz"]
[Site "Chess.com"]
[Date "2020.04.28"]
[Round "5"]
[White "VolodymyrMolyboha"]
[Black "RaphaeI"]
[Result "0-1"]
[WhiteElo "2419"]
[BlackElo "2631"]
[TimeControl "180+1"]
[EndTime "10:53:13 PDT"]
[Termination "RaphaeI won by resignation"]

1. e4 {[%clk 0:03:00.9]} 1... c5 {[%clk 0:03:00.1]} 2. Nf3 {[%clk 0:03:00.9]}
2... Nc6 {[%clk 0:03:00.7]} 3. Bb5 {[%clk 0:03:00.2]} 3... g6 {[%clk 0:03:01.2]}
4. O-O {[%clk 0:03:00.2]} 4... Bg7 {[%clk 0:03:01.3]} 5. Re1 {[%clk 0:03:00.6]}
5... e5 {[%clk 0:02:59.9]} 6. c3 {[%clk 0:03:00.7]} 6... Nge7 {[%clk 0:02:53.7]}
7. d4 {[%clk 0:03:00.8]} 7... cxd4 {[%clk 0:02:39.8]} 8. cxd4 {[%clk 0:03:00.5]}
8... exd4 {[%clk 0:02:38.8]} 9. e5 {[%clk 0:03:00.6]} 9... O-O {[%clk
0:02:15.8]} 10. Bg5 {[%clk 0:02:59.8]} 10... Qb6 {[%clk 0:02:15.9]} 11. Na3
{[%clk 0:02:58.8]} 11... Nf5 {[%clk 0:02:02.7]} 12. Bd3 {[%clk 0:02:45.2]} 12...
d5 {[%clk 0:01:56.5]} 13. Nb5 {[%clk 0:02:33.2]} 13... a6 {[%clk 0:01:51.8]} 14.
Nd6 {[%clk 0:02:33.1]} 14... Nxd6 {[%clk 0:01:47.4]} 15. exd6 {[%clk 0:02:33]}
15... Bg4 {[%clk 0:01:48.3]} 16. h3 {[%clk 0:02:24.5]} 16... Bxf3 {[%clk
0:01:41.5]} 17. Qxf3 {[%clk 0:02:24.4]} 17... Ne5 {[%clk 0:01:41]} 18. Qg3
{[%clk 0:02:04.5]} 18... Qxd6 {[%clk 0:01:24.1]} 19. f4 {[%clk 0:02:03.8]} 19...
Nxd3 {[%clk 0:01:20.1]} 20. Be7 {[%clk 0:02:03.9]} 20... Qxf4 {[%clk 0:01:20.2]}
21. Qxd3 {[%clk 0:02:00.5]} 21... Rfe8 {[%clk 0:01:18.3]} 22. Re2 {[%clk
0:01:46]} 22... Rac8 {[%clk 0:01:11.9]} 23. Rf1 {[%clk 0:01:42.3]} 23... Rc1
{[%clk 0:01:11.2]} 24. Rxc1 {[%clk 0:01:12.5]} 24... Qxc1+ {[%clk 0:01:10]} 25.
Kh2 {[%clk 0:01:11.2]} 25... Qc7+ {[%clk 0:01:09.8]} 0-1

[Event "*** Titled Tuesday Blitz"]
[Site "Chess.com"]
[Date "2020.04.28"]
[Round "5"]
[White "Mimsychess"]
[Black "YoungUzbek"]
[Result "1-0"]
[WhiteElo "2353"]
[BlackElo "2505"]
[TimeControl "180+1"]
[EndTime "10:53:13 PDT"]
[Termination "Mimsychess won by resignation"]

1. c4 {[%clk 0:03:00.9]} 1... Nf6 {[%clk 0:02:59.5]} 2. Nc3 {[%clk 0:02:55.8]}
2... e5 {[%clk 0:02:59.7]} 3. Nf3 {[%clk 0:02:54.6]} 3... d6 {[%clk 0:03:00]} 4.
d4 {[%clk 0:02:51.5]} 4... exd4 {[%clk 0:02:59.8]} 5. Nxd4 {[%clk 0:02:51.3]}
5... g6 {[%clk 0:02:59.8]} 6. e4 {[%clk 0:02:50.8]} 6... Bg7 {[%clk 0:02:59.9]}
7. Be2 {[%clk 0:02:51.1]} 7... O-O {[%clk 0:02:59.9]} 8. Be3 {[%clk 0:02:51.1]}
8... Re8 {[%clk 0:03:00.3]} 9. f3 {[%clk 0:02:50.2]} 9... a5 {[%clk 0:03:00.6]}
10. Qd2 {[%clk 0:02:43.9]} 10... a4 {[%clk 0:02:58.6]} 11. O-O {[%clk
0:02:40.2]} 11... Nh5 {[%clk 0:02:55.1]} 12. Rad1 {[%clk 0:02:31.4]} 12... Nd7
{[%clk 0:02:47.6]} 13. Kh1 {[%clk 0:02:25.2]} 13... a3 {[%clk 0:02:18.1]} 14. b3
{[%clk 0:02:19.2]} 14... Ne5 {[%clk 0:02:09.5]} 15. Ndb5 {[%clk 0:02:14.1]}
15... Bd7 {[%clk 0:01:58.9]} 16. c5 {[%clk 0:02:02.1]} 16... dxc5 {[%clk
0:01:51.8]} 17. Bxc5 {[%clk 0:01:48.7]} 17... Qh4 {[%clk 0:01:19.5]} 18. Bf2
{[%clk 0:01:33.3]} 18... Qf4 {[%clk 0:01:19.2]} 19. Nxc7 {[%clk 0:01:25.8]}
19... Ng4 {[%clk 0:01:06.5]} 20. Qxf4 {[%clk 0:01:22.2]} 20... Nxf2+ {[%clk
0:01:05.1]} 21. Rxf2 {[%clk 0:01:22]} 21... Nxf4 {[%clk 0:01:05.7]} 22. Nxa8
{[%clk 0:01:17.1]} 22... Bxc3 {[%clk 0:01:01.2]} 23. Rxd7 {[%clk 0:01:14.2]}
23... Rxa8 {[%clk 0:01:00.7]} 24. Bc4 {[%clk 0:01:13.1]} 1-0